Cogmind - Beta 10.2 @@@ ROGUE MODE // 2021.10.30 @ 18:48:07 Player: Geraldon Result: Escaped! Performance ------------- Evolutions (9) 4500 Regions Visited (31) 6200 Robots Destroyed (148) 740 Value Destroyed (4232) 4232 Prototype IDs (122) 2440 Alien Tech Used (1) 200 Bonus (15514) 15514 TOTAL SCORE: 33826 Bonus ------- Fragile Parts 2000 Triggered Max Security 1000 High Alert Combat Kills 721 Follower Combat Kills 791 Aligned with FarCom 300 Met Data Miner 300 Met Imprinter 300 Met Zhirov 300 Met Warlord at Base 500 MAIN.C Attacked Warlord 500 Win 3000 Challenge Win 7000 Friendly Fire -1198 Cogmind --------- Core Integrity 1212/1600 Matter 300/300 Energy 96/100 System Corruption 0% Temperature Cool (13) Movement Flying (21) Location To Epsilon Eridani Parts ------- > --- POWER (2) -------- (None) > --- PROPULSION (6) --- Cooled Nuclear Pulse Thruster Experimental Cesium-ion Thruster Experimental Cesium-ion Thruster Improved Diametric Drive Cooled Impulse Thruster > --- UTILITY (14) ----- Advanced Heat Sink Spectral Analyzer Advanced Phase Shifter Hacking Suite Hacking Suite Makeshift Hacking Suite Advanced Hacking Suite Advanced Hacking Suite System Shield Makeshift System Shield Advanced System Shield Mini Drone Bay (0/3) > --- WEAPON (3) ------- (None) > --- INVENTORY (4) ---- Cooled Field Propulsion Drive Improved Diametric Drive Transdimensional Reconstructor Peak State ------------ > --- POWER ------------ Backup Power VII Backup Power VII > --- PROPULSION ------- Cooled Nuclear Pulse Thruster Experimental Cesium-ion Thruster Experimental Cesium-ion Thruster Experimental Cesium-ion Thruster Improved Diametric Drive Cooled Impulse Thruster > --- UTILITY ---------- Spectral Analyzer Advanced Phase Shifter Experimental Propulsion Shielding Experimental Utility Shielding Experimental Utility Shielding Hacking Suite Hacking Suite Makeshift Hacking Suite Advanced Hacking Suite Advanced Hacking Suite System Shield Makeshift System Shield Advanced System Shield Mini Drone Bay > --- WEAPON ----------- Advanced Plasma Rifle Matter Neutralizer Improved Remote Datajack > --- INVENTORY -------- Cooled Field Propulsion Drive Improved Diametric Drive Advanced Heat Sink Transdimensional Reconstructor [Rating: 161] Favorites ----------- Power Improved Ion Engine Engine Improved Ion Engine Power Core Micro Fission Core Reactor Mini Fusion Reactor Propulsion Improved VTOL Module Treads Light Treads Flight Unit Improved VTOL Module Utility Hacking Suite Device Improved Heat Sink Storage High-capacity Storage Unit Processor Spectral Analyzer Hackware Hacking Suite Protection Experimental Propulsion Shielding Weapon Makeshift Sword Energy Gun Precision Beam Rifle Energy Cannon Light EM Pulse Cannon Ballistic Gun Shotgun Launcher Mini Smartbomb Launcher Special Weapon Improved Remote Datajack Impact Weapon Mace Slashing Weapon Makeshift Sword Special Melee Weapon Improved Datajack Build | -11 -10 -10 -10 -9 -8 -8 -7 -7 -7 -7 -7 -6 -6 -6 -6 -6 -5 -5 -5 -5 -5 -4 -4 -4 -4 -4 -3 -3 -3 -2 -1 ------- Run | Scr Mat Min Exi Min Mat Sto Fac Was Fac Low Zio Pro Fac Low Low Dat Pro Fac Upp Upp War Pro Fac Upp Upp Zhi Pro Res Tes Res Acc Slots Evolved 18 | . . . . . 4 . 2 . . . . . 2 . . . . 2 . . . . 2 . . . . 2 . 2 2 Power 1 | . . . . . . . . . . . . . . . . . . . . . . . 1 . . . . . . . . Propulsion 4 | . . . . . 1 . . . . . . . 1 . . . . . . . . . . . . . . 1 . 1 . Utility 12 | . . . . . 3 . 2 . . . . . 1 . . . . 1 . . . . 1 . . . . 1 . 1 2 Weapon 1 | . . . . . . . . . . . . . . . . . . 1 . . . . . . . . . . . . . Parts Attached 148 | 7 8 5 1 1 24 30 8 1 7 . 5 2 9 1 1 . 1 5 . . 2 . 9 1 . 4 1 2 1 5 7 Power 20 | 1 1 1 . . 2 3 . . 1 . . 2 2 . . . . 2 . . . . 2 . . 2 . . . 1 . Engine 10 | 1 1 1 . . 2 . . . . . . 2 1 . . . . 1 . . . . . . . 1 . . . . . Core 6 | . . . . . . 1 . . 1 . . . 1 . . . . 1 . . . . 2 . . . . . . . . Reactor 4 | . . . . . . 2 . . . . . . . . . . . . . . . . . . . 1 . . . 1 . Propulsion 33 | 2 1 1 . . 9 10 2 . . . . . 3 . 1 . . . . . 2 . . . . . . 1 . 1 . Treads 19 | 2 1 1 . . 9 6 . . . . . . . . . . . . . . . . . . . . . . . . . Leg . | . . . . . . . . . . . . . . . . . . . . . . . . . . . . . . . . Wheel . | . . . . . . . . . . . . . . . . . . . . . . . . . . . . . . . . Hover . | . . . . . . . . . . . . . . . . . . . . . . . . . . . . . . . . Flight 14 | . . . . . . 4 2 . . . . . 3 . 1 . . . . . 2 . . . . . . 1 . 1 . Utility 50 | 2 3 . . . 6 9 3 1 4 . 3 . 3 . . . . 1 . . . . 3 1 . 2 . 1 1 2 5 Device 17 | 1 1 . . . 2 4 . . 2 . . . 1 . . . . . . . . . . 1 . 1 . 1 . . 3 Storage 4 | 1 2 . . . . 1 . . . . . . . . . . . . . . . . . . . . . . . . . Processor 1 | . . . . . . . . . . . . . . . . . . . . . . . . . . . . . 1 . . Hackware 13 | . . . . . . 1 1 . 2 . 2 . 2 . . . . . . . . . 2 . . 1 . . . . 2 Protection 15 | . . . . . 4 3 2 1 . . 1 . . . . . . 1 . . . . 1 . . . . . . 2 . Artifact . | . . . . . . . . . . . . . . . . . . . . . . . . . . . . . . . . Weapon 45 | 2 3 3 1 1 7 8 3 . 2 . 2 . 1 1 . . 1 2 . . . . 4 . . . 1 . . 1 2 Energy Gun 11 | 2 1 . . . 2 4 . . . . . . 1 . . . . . . . . . . . . . . . . . 1 Energy Cannon 8 | . 2 . . 1 2 1 . . 1 . . . . . . . . . . . . . . . . . . . . . 1 Ballistic Gun 6 | . . 3 . . 1 1 . . . . . . . 1 . . . . . . . . . . . . . . . . . Ballistic Cannon . | . . . . . . . . . . . . . . . . . . . . . . . . . . . . . . . . Launcher 8 | . . . . . 2 1 1 . . . . . . . . . 1 1 . . . . 2 . . . . . . . . Special Weapon 3 | . . . . . . . . . . . . . . . . . . . . . . . 1 . . . 1 . . 1 . Impact Weapon 1 | . . . . . . . 1 . . . . . . . . . . . . . . . . . . . . . . . . Slashing Weapon 2 | . . . . . . . . . . . 2 . . . . . . . . . . . . . . . . . . . . Piercing Weapon . | . . . . . . . . . . . . . . . . . . . . . . . . . . . . . . . . Special Melee Weapon 6 | . . . 1 . . 1 1 . 1 . . . . . . . . 1 . . . . 1 . . . . . . . . Unidentified Prototypes 17 | . . . . . 3 4 1 . 1 . . . 1 . . . . 1 . . 1 . . . . 3 . . 1 1 . Parts Lost 69 | . 3 2 . . 8 22 5 . 5 . . . 2 . 1 . . . . . . 2 2 1 1 . . . 5 1 9 Power 8 | . . . . . . 2 1 . 1 . . . 1 . . . . . . . . . . . . . . . 1 . 2 Propulsion 14 | . 1 1 . . 2 6 1 . . . . . 1 . 1 . . . . . . . . . . . . . . . 1 Utility 24 | . . . . . 3 7 2 . 3 . . . . . . . . . . . . 1 1 1 . . . . 2 1 3 Weapon 23 | . 2 1 . . 3 7 1 . 1 . . . . . . . . . . . . 1 1 . 1 . . . 2 . 3 Highest Loss Streak 10 | . 2 1 . . 3 10 5 . 2 . . . 1 . 1 . . . . . . 2 2 3 1 . . . 5 1 9 Average Slot Usage (%) 90 | . 99 95 100 100 89 81 80 68 80 61 73 89 91 99 99 100 100 97 100 100 99 100 87 91 90 88 93 85 85 84 91 Engine 5 | . 14 9 14 14 8 1 . . . . . 4 3 6 6 6 6 1 5 5 5 5 . . . 1 5 4 2 . . Core 1 | . . . . . . 3 . . 5 . . . . . . . . 3 . . . . 8 10 10 6 . . . . 4 Treads 12 | . 27 28 28 28 26 16 . . . . . . . . . . . . . . . . . . . . . . . . . Flight 12 | . . . . . . 9 22 23 23 23 23 23 25 26 25 26 26 23 23 23 22 23 21 21 21 21 21 19 23 26 23 Device 5 | . 11 . . . 4 9 11 7 15 7 3 . . 6 6 6 6 5 5 5 5 5 . 2 5 5 5 4 7 2 6 Storage 12 | . 16 28 28 28 18 14 7 7 7 7 7 7 6 6 6 6 6 5 5 5 5 5 4 . . . . . . . . Hackware 15 | . . . . . . . 10 7 12 23 30 38 39 40 40 40 40 35 35 35 35 35 32 42 42 40 42 38 34 30 31 Protection 6 | . . . . . 12 10 11 14 6 . 3 7 4 . . . . 2 5 5 5 5 7 5 5 5 5 4 4 10 11 Energy Gun 1 | . 2 . . . 1 8 . . . . . . 4 2 . . . . . . . . . . . . . . . . 3 Energy Cannon 4 | . 24 8 . 7 8 1 . . . . . . . . . . . . . . . . . . . . . . . . . Ballistic Gun 3 | . . 19 16 14 3 1 1 . . . . . . 2 6 6 3 . . . . . . . . . . . . . . Launcher 1 | . . . . . 3 3 3 . . . . . . . . . 2 5 5 5 5 5 1 . . . . . . . . Slashing Weapon 1 | . . . . . . . . . . . 4 7 6 6 6 6 6 5 5 5 5 5 3 . . . . . . . . Special Melee Weapon 1 | . . . 11 6 . . 2 . 3 . . . . . . . . 5 5 5 5 5 5 10 6 5 5 4 2 . . Naked Turns . | . . . . . . . . . . . . . . . . . . . . . . . . . . . . . . . . Heaviest Build 95 | 13 77 77 77 78 95 94 24 12 22 5 10 14 24 12 12 12 14 25 25 25 25 25 27 16 16 22 22 23 23 35 40 Greatest Support 84 | 40 40 40 40 40 84 68 19 12 18 12 12 18 26 13 20 14 14 27 27 27 30 30 30 23 23 23 23 39 30 50 41 Greatest Overweight (x) 3 | . 1 1 1 1 3 3 1 . 1 . . . 1 . . . . . . . . . . . . . . . . . . Average Overweight (x) . | . . 1 1 1 . . . . . . . . . . . . . . . . . . . . . . . . . . . Largest Inventory Capacity 20 | 6 20 20 20 20 20 20 4 4 4 4 4 4 4 4 4 4 4 4 4 4 4 4 4 4 4 4 4 4 4 4 4 Average Capacity 10 | 4 11 20 20 20 20 14 4 4 4 4 4 4 4 4 4 4 4 4 4 4 4 4 4 4 4 4 4 4 4 4 4 Most Carried 20 | 4 14 18 18 18 20 20 4 4 4 3 4 4 4 4 3 2 3 4 4 4 4 4 4 4 4 4 4 4 4 4 4 Average Carried 8 | 1 8 14 17 17 17 11 3 3 3 3 3 4 3 3 2 2 2 2 4 4 3 4 3 3 3 3 4 3 3 3 3 Final Capacity 20 | 6 20 20 20 20 20 4 4 4 4 4 4 4 4 4 4 4 4 4 4 4 4 4 4 4 4 4 4 4 4 4 4 Final Carried 20 | 1 14 18 18 17 20 4 2 4 3 3 4 4 3 3 2 2 2 4 4 4 4 4 4 3 4 4 4 3 4 4 3 Class Distribution -------------------- 33% | Hauler-Mutant 33% | Wizard-Sprinter 8% | Hacker-Sprinter 7% | Mutant 7% | Sprinter 4% | Scavenger-Mutant Dominant Class ---------------- Mutant | -10/Materials Hauler-Mutant | -10/Mines Hauler-Mutant | -10/Exiles Hauler-Mutant | -9/Mines Hauler-Mutant | -8/Materials Hauler-Mutant | -8/Storage Scavenger-Sprinter | -7/Factory Sprinter | -7/Waste Hacker-Sprinter | -7/Factory Hacker-Sprinter | -7/Lower Caves Hacker-Sprinter | -7/Zion Hacker-Sprinter | -6/Proximity Caves Wizard-Sprinter | -6/Factory Wizard-Sprinter | -6/Lower Caves Wizard-Sprinter | -6/Lower Caves Wizard-Sprinter | -6/Data Miner Wizard-Sprinter | -5/Proximity Caves Wizard-Sprinter | -5/Factory Wizard-Sprinter | -5/Upper Caves Wizard-Sprinter | -5/Upper Caves Wizard-Sprinter | -5/Warlord Wizard-Sprinter | -4/Proximity Caves Wizard-Sprinter | -4/Factory Wizard-Sprinter | -4/Upper Caves Wizard-Sprinter | -4/Upper Caves Wizard-Sprinter | -4/Zhirov Wizard-Sprinter | -3/Proximity Caves Wizard-Sprinter | -3/Research Wizard-Sprinter | -3/Testing Wizard-Sprinter | -2/Research Wizard-Sprinter | -1/Access Resources | -11 -10 -10 -10 -9 -8 -8 -7 -7 -7 -7 -7 -6 -6 -6 -6 -6 -5 -5 -5 -5 -5 -4 -4 -4 -4 -4 -3 -3 -3 -2 -1 ----------- Run | Scr Mat Min Exi Min Mat Sto Fac Was Fac Low Zio Pro Fac Low Low Dat Pro Fac Upp Upp War Pro Fac Upp Upp Zhi Pro Res Tes Res Acc Matter Collected 2448 | 270 70 223 . 32 512 422 86 10 50 . 28 47 75 . 12 . 120 60 40 20 . 40 120 . 17 . 59 . 19 59 57 Remotely 123 | 118 5 . . . . . . . . . . . . . . . . . . . . . . . . . . . . . . Salvage Created 5340 | 70 432 103 . 88 1877 1182 77 . 181 . . 39 134 . . . 474 277 33 71 . 46 256 . . . . . . . . Parts 293 | 3 25 . . 5 102 59 4 . 9 . . 2 7 . . . 30 8 10 3 . 7 19 . . . . . . . . Haulers Intercepted 16 | . 2 . . . 6 4 . . 2 . . . . . . . . 2 . . . . . . . . . . . . . Recyclers Shooed 3 | . . . . . 3 . . . . . . . . . . . . . . . . . . . . . . . . . . Parts Field Recycled . | . . . . . . . . . . . . . . . . . . . . . . . . . . . . . . . . Retrieved Matter . | . . . . . . . . . . . . . . . . . . . . . . . . . . . . . . . . Parts Self-Destructed 42 | . . . . . . . . . . . . 1 . . . . 21 . 6 2 5 5 . 2 . . . . . . . Prevented 15 | . . . . . . . . . . . . 3 . . . . 6 . . . 6 . . . . . . . . . . Kills | -11 -10 -10 -10 -9 -8 -8 -7 -7 -7 -7 -7 -6 -6 -6 -6 -6 -5 -5 -5 -5 -5 -4 -4 -4 -4 -4 -3 -3 -3 -2 -1 ------- Run | Scr Mat Min Exi Min Mat Sto Fac Was Fac Low Zio Pro Fac Low Low Dat Pro Fac Upp Upp War Pro Fac Upp Upp Zhi Pro Res Tes Res Acc Combat Hostiles Destroyed 103 | . 7 8 . 2 37 15 1 . 1 . . . 2 . . . 12 . 4 1 . 4 9 . . . . . . . . Melee 3 | . 1 . . . . . . . . . . . 2 . . . . . . . . . . . . . . . . . . Guns 29 | . 1 8 . 1 8 8 . . . . . . . . . . 3 . . . . . . . . . . . . . . Cannons 22 | . 3 . . 1 12 5 . . 1 . . . . . . . . . . . . . . . . . . . . . . AOE 45 | . 1 . . . 14 2 1 . . . . . . . . . 9 . 4 1 . 4 9 . . . . . . . . Classes Destroyed 17 | 1 5 1 . 2 5 1 1 . . . . 1 . . . . . . . . . . . . . . . . . . . Worker 6 | . . . . . 4 2 . . . . . . . . . . . . . . . . . . . . . . . . . Builder 7 | . . . . 1 4 2 . . . . . . . . . . . . . . . . . . . . . . . . . Tunneler 3 | . 2 . . . . 1 . . . . . . . . . . . . . . . . . . . . . . . . . Hauler 16 | . 2 . . . 6 4 . . 2 . . . . . . . . 2 . . . . . . . . . . . . . Recycler 3 | 1 . . . . . 1 1 . . . . . . . . . . . . . . . . . . . . . . . . Minesweeper 3 | . . . . . . . . . . . . 1 . . . . 1 . . 1 . . . . . . . . . . . Operator 6 | . . . . . 2 2 . . 2 . . . . . . . . . . . . . . . . . . . . . . Watcher 7 | . 2 . . . 1 1 . . . . . . 1 . . . . 2 . . . . . . . . . . . . . Swarmer 39 | . 3 . . . 10 . . . . . . . . . . . 9 . 4 . . 4 9 . . . . . . . . Grunt 36 | . 4 . . 1 20 9 . . . . . . . . . . 2 . . . . . . . . . . . . . . Brawler 1 | . . . . . . 1 . . . . . . . . . . . . . . . . . . . . . . . . . Duelist 4 | . . . . 1 1 1 . . . . . . . . . . 1 . . . . . . . . . . . . . . Protector 1 | . . . . . 1 . . . . . . . . . . . . . . . . . . . . . . . . . . Sentry 11 | . . . . . 5 4 . . 1 . . . 1 . . . . . . . . . . . . . . . . . . Hunter 2 | . . . . . 1 . . . . . . . . . . . . . . 1 . . . . . . . . . . . Programmer 2 | . . . . . . . 1 . . . . . 1 . . . . . . . . . . . . . . . . . . Assembled 8 | . . 8 . . . . . . . . . . . . . . . . . . . . . . . . . . . . . Best Kill Streak 13 | 1 3 4 . 2 13 3 1 . 2 . . 1 1 . . . 5 1 4 1 . 4 9 . . . . . . . . Combat Bots Only 9 | . 3 4 . 2 8 3 1 . 1 . . . 1 . . . 5 . 4 1 . 4 9 . . . . . . . . Max Kills in Single Turn 4 | 1 1 2 . 1 4 3 1 . 1 . . 1 1 . . . 4 1 3 1 . 4 2 . . . . . . . . Gunslinging 1 | . . 1 . . . . . . . . . . . . . . . . . . . . . . . . . . . . . Exploded 4 | . 1 . . . 3 1 1 . . . . . . . . . 4 . 3 1 . 4 2 . . . . . . . . Melee 1 | . 1 . . . . . . . . . . . 1 . . . . . . . . . . . . . . . . . . Uniques/NPCs Destroyed 1 | . . . . . . 1 . . . . . . . . . . . . . . . . . . . . . . . . . 01-MTF (-8/Storage) Combat | -11 -10 -10 -10 -9 -8 -8 -7 -7 -7 -7 -7 -6 -6 -6 -6 -6 -5 -5 -5 -5 -5 -4 -4 -4 -4 -4 -3 -3 -3 -2 -1 -------- Run | Scr Mat Min Exi Min Mat Sto Fac Was Fac Low Zio Pro Fac Low Low Dat Pro Fac Upp Upp War Pro Fac Upp Upp Zhi Pro Res Tes Res Acc Damage Taken 11092 | . 591 463 . 22 2048 2911 773 . 509 . . 37 194 . 63 . 150 70 44 78 . 215 473 125 58 . . 99 369 219 1581 Core 1927 | . 99 84 . . 113 316 282 . 139 . . 21 37 . 21 . 54 . . 16 . . 111 47 11 . . 51 109 28 388 Absorbed by Shields . | . . . . . . . . . . . . . . . . . . . . . . . . . . . . . . . . Core Remaining (%) 71 | 100 . . . 26 . 22 . . . . . 36 . . . . 86 . . . . 98 . . . . 85 . 87 98 75 Volleys Fired 353 | 1 36 28 . 10 128 85 3 . 7 . . . . . . . 25 . 2 1 . 1 14 . . . . . . 3 9 Largest 2 | 2 2 2 . 2 2 2 1 . 1 . . . . . . . 1 . 1 1 . 1 1 . . . . . . 1 1 Hottest 129 | 80 112 112 . 79 112 129 39 . 90 . . . . . . . 36 . 80 80 . 80 100 . . . . . . 40 105 Shots Fired 517 | 2 68 56 . 13 180 133 3 . 7 . . . . . . . 25 . 2 1 . 1 14 . . . . . . 3 9 Gun 277 | 2 23 46 . 3 76 100 1 . . . . . . . . . 18 . . . . . . . . . . . . . 8 Cannon 178 | . 45 10 . 10 84 21 . . 7 . . . . . . . . . . . . . . . . . . . . . 1 Launcher 55 | . . . . . 20 12 2 . . . . . . . . . 7 . 2 1 . 1 10 . . . . . . . . Special 7 | . . . . . . . . . . . . . . . . . . . . . . . 4 . . . . . . 3 . Kinetic 119 | . . 46 . 3 33 18 1 . . . . . . . . . 18 . . . . . . . . . . . . . . Thermal 165 | 1 10 . . . 33 101 . . 7 . . . . . . . . . . . . . 4 . . . . . . . 9 Explosive 38 | . . . . . 20 12 2 . . . . . . . . . . . 2 1 . 1 . . . . . . . . . Electromagnetic 192 | 1 58 10 . 10 94 2 . . . . . . . . . . 7 . . . . . 10 . . . . . . . . Robot Hit Streak 43 | 1 11 8 . 8 23 43 1 . 4 . . . . . . . 5 . 4 . . 5 6 . . . . . . 2 2 Robot Miss Streak 5 | . 3 5 . 1 5 4 . . 1 . . . . . . . 2 . . . . . 1 . . . . . . . 2 Penetration Max 1 | . . . . . . . . . . . . . . . . . 1 . . . . . . . . . . . . . . Secondary Targets 4 | . . 1 . . . 3 . . . . . . . . . . . . . . . . . . . . . . . . . Max Gunslinging Chain 1 | . . 1 . . . 1 . . . . . . . . . . . . . . . . . . . . . . . . . Shots Hit Robots 402 | 1 44 36 4 10 124 102 3 . 13 . . 1 11 . . . 12 16 2 5 3 1 5 . . 3 . 2 . 2 2 Core Hits 242 | 1 15 17 . 4 94 49 3 . 5 . . 1 4 . . . 18 5 4 3 . 4 14 . . . . . . . 1 Critical Hits 6 | . . . . . . 2 . . . . . . 2 . . . . 1 . 1 . . . . . . . . . . . Critical Kills 3 | . . . . . . . . . . . . . 1 . . . . 1 . 1 . . . . . . . . . . . Critical Parts Destroyed 3 | . . . . . . 2 . . . . . . 1 . . . . . . . . . . . . . . . . . . Melee Attacks 124 | . . . 4 . . . 8 . 16 . . 1 37 . 6 . 1 35 1 7 3 . . . . 3 . 2 . . . Impact 19 | . . . . . . . 6 . 13 . . . . . . . . . . . . . . . . . . . . . . Slashing 84 | . . . . . . . . . . . . 1 37 . 6 . 1 31 1 7 . . . . . . . . . . . Piercing . | . . . . . . . . . . . . . . . . . . . . . . . . . . . . . . . . Sneak Attacks 28 | . . . 4 . . . 2 . 5 . . 1 . . . . 1 6 . 1 3 . . . . 3 . 2 . . . Combat Hostiles . | . . . . . . . . . . . . . . . . . . . . . . . . . . . . . . . . Follow-up Attacks . | . . . . . . . . . . . . . . . . . . . . . . . . . . . . . . . . Damage Inflicted 13650 | 15 1048 382 . 217 4801 2593 197 . 457 . . 125 407 . . . 949 672 412 364 . 286 646 . . . . . 3 . 76 Guns 3399 | 15 180 286 . 33 990 1479 16 . . . . . . . . . 324 . . . . . . . . . . . . . 76 Cannons 3245 | . 734 96 . 149 1594 402 . . 270 . . . . . . . . . . . . . . . . . . . . . . Explosions 5140 | . 129 . . 29 2166 694 181 . 16 . . . . . . . 522 . 412 81 . 286 624 . . . . . . . . Melee 1761 | . . . . . . . . . 171 . . 125 407 . . . 103 672 . 283 . . . . . . . . . . . Ramming 83 | . 5 . . 6 51 18 . . . . . . . . . . . . . . . . . . . . . . 3 . . Kinetic 1182 | . . 286 . 33 300 223 16 . . . . . . . . . 324 . . . . . . . . . . . . . . Thermal 3432 | . 162 . . 29 1089 1604 . . 286 . . . . . . . 67 . . . . . 119 . . . . . . . 76 Explosive 3192 | . . . . . 1538 694 181 . . . . . . . . . . . 412 81 . 286 . . . . . . . . . Electromagnetic 4000 | 15 881 96 . 149 1823 54 . . . . . . . . . . 455 . . . . . 527 . . . . . . . . Impact 171 | . . . . . . . . . 171 . . . . . . . . . . . . . . . . . . . . . . Slashing 1590 | . . . . . . . . . . . . 125 407 . . . 103 672 . 283 . . . . . . . . . . . Piercing . | . . . . . . . . . . . . . . . . . . . . . . . . . . . . . . . . Highest Corruption 2 | . . . . . . . 2 2 2 1 1 . . . . . . 1 1 1 1 . . . . . . . . . . Average Corruption 1 | . . . . . . . 1 2 1 1 1 . . . . . . 1 1 1 1 . . . . . . . . . . Corruption Purged 1 | . . . . . . . . . 1 . . . . . . . . . . . . . . . . . . . . . . Effects 6 | . . . . . . . 1 2 2 . . . . . . . . 1 . . . . . . . . . . . . . Message Errors 5 | . . . . . . . 1 2 2 . . . . . . . . . . . . . . . . . . . . . . Targeting Errors 1 | . . . . . . . . . . . . . . . . . . 1 . . . . . . . . . . . . . Overload Shots 7 | . . . . . . . . . 7 . . . . . . . . . . . . . . . . . . . . . . Overflow Damage 379 | . 31 14 . . 74 14 . . 8 . . . 9 . . . . 91 . 116 . 6 16 . . . . . . . . Projectiles 60 | . 31 14 . . 15 . . . . . . . . . . . . . . . . . . . . . . . . . . Explosions 95 | . . . . . 59 14 . . . . . . . . . . . . . . . 6 16 . . . . . . . . Melee 224 | . . . . . . . . . 8 . . . 9 . . . . 91 . 116 . . . . . . . . . . . Knockbacks . | . . . . . . . . . . . . . . . . . . . . . . . . . . . . . . . . Impact . | . . . . . . . . . . . . . . . . . . . . . . . . . . . . . . . . Kinetic . | . . . . . . . . . . . . . . . . . . . . . . . . . . . . . . . . Secondary . | . . . . . . . . . . . . . . . . . . . . . . . . . . . . . . . . Self-Inflicted Damage 355 | . 93 . . . 192 43 26 . . . . . . . . . . . . . . . . . . . . . 1 . . Shots 12 | . 3 . . . 6 2 1 . . . . . . . . . . . . . . . . . . . . . . . . Rammed 10 | . 1 . . . 5 3 . . . . . . . . . . . . . . . . . . . . . . 1 . . Targets Rammed 13 | . 2 . . 1 5 4 . . . . . . . . . . . . . . . . . . . . . . 1 . . Kicked . | . . . . . . . . . . . . . . . . . . . . . . . . . . . . . . . . Crushed 3 | . 1 . . 1 . 1 . . . . . . . . . . . . . . . . . . . . . . . . . Highest Temperature 443 | 18 322 102 . 183 330 443 . . 270 . . 2 2 . . . . 8 56 28 5 40 134 8 . 7 . 31 12 367 80 Average Temperature 96 | 12 85 35 . 90 94 162 . . 121 . . 2 2 . . . . 3 26 13 5 21 39 5 . 5 . 22 6 132 27 Received Heat Transfer 3247 | . 222 160 . 12 810 1206 168 . 174 . . 9 69 . 21 . 63 18 . . . 24 54 21 . . . . 45 18 153 Effects 17 | . 4 . . . 2 7 . . . . . . . . . . . . . . . . . . . . . . . 4 . Shutdowns 3 | . . . . . . 1 . . . . . . . . . . . . . . . . . . . . . . . 2 . Energy Bleed 9 | . 2 . . . 2 3 . . . . . . . . . . . . . . . . . . . . . . . 2 . Interference 2 | . 2 . . . . . . . . . . . . . . . . . . . . . . . . . . . . . . Damage (minor) 3 | . . . . . . 3 . . . . . . . . . . . . . . . . . . . . . . . . . Siege Activations . | . . . . . . . . . . . . . . . . . . . . . . . . . . . . . . . . Robots Corrupted 5 | . 2 . . . 3 . . . . . . . . . . . . . . . . . . . . . . . . . . Combat Hostiles 4 | . 1 . . . 3 . . . . . . . . . . . . . . . . . . . . . . . . . . Parts Fried 16 | . 3 . . 1 9 1 . . 1 . . . . . . . 1 . . . . . . . . . . . . . . Impact Corruptions 1 | . . . . . . . . . 1 . . . . . . . . . . . . . . . . . . . . . . Robots Melted . | . . . . . . . . . . . . . . . . . . . . . . . . . . . . . . . . Combat Hostiles . | . . . . . . . . . . . . . . . . . . . . . . . . . . . . . . . . Parts Melted 10 | . . . . . 1 8 . . 1 . . . . . . . . . . . . . . . . . . . . . . Heat Transferred 6253 | . 275 . . 50 1738 3330 . . 300 . . . . . . . 100 . . . . . 310 . . . . . . . 150 Parts Sabotaged . | . . . . . . . . . . . . . . . . . . . . . . . . . . . . . . . . Parts Stolen . | . . . . . . . . . . . . . . . . . . . . . . . . . . . . . . . . Parts Stripped . | . . . . . . . . . . . . . . . . . . . . . . . . . . . . . . . . Power Chain Reactions 15 | . 3 . . 1 5 . . . . . . . . . . . 3 . . . . . 3 . . . . . . . . Missiles Intercepted . | . . . . . . . . . . . . . . . . . . . . . . . . . . . . . . . . Alert | -11 -10 -10 -10 -9 -8 -8 -7 -7 -7 -7 -7 -6 -6 -6 -6 -6 -5 -5 -5 -5 -5 -4 -4 -4 -4 -4 -3 -3 -3 -2 -1 ------- Run | Scr Mat Min Exi Min Mat Sto Fac Was Fac Low Zio Pro Fac Low Low Dat Pro Fac Upp Upp War Pro Fac Upp Upp Zhi Pro Res Tes Res Acc Peak Influence 1696 | 5 169 74 . 70 1067 926 1000 350 1696 . . . 153 . . . . 580 . . . . 417 . . . . 120 1610 1240 914 Initial 1100 | . 3 19 . . 27 397 420 350 245 . . . 40 . . . . 251 . . . . 81 . . . . . 67 1100 744 Average 404 | 3 102 20 . 17 698 506 600 350 878 . . . 58 . . . . 299 . . . . 256 . . . . 17 1541 1133 798 Maximum Alert Level 5 | . . . . . 3 3 3 1 5 . . . . . . . . 2 . . . . 2 . . . . . 5 4 3 Low Security (%) 41 | 100 100 100 . 100 15 . . . . . . . 100 . . . . 15 . . . . 34 . . . . 100 2 . . Level 1 16 | . . . . . 10 24 . 100 25 . . . . . . . . 61 . . . . 65 . . . . . . . . Level 2 15 | . . . . . 1 60 71 . 16 . . . . . . . . 23 . . . . . . . . . . . . 13 Level 3 24 | . . . . . 72 14 28 . 24 . . . . . . . . . . . . . . . . . . . . . 86 Level 4 1 | . . . . . . . . . 12 . . . . . . . . . . . . . . . . . . . . 100 . Level 5 . | . . . . . . . . . 20 . . . . . . . . . . . . . . . . . . . . . . High Security . | . . . . . . . . . . . . . . . . . . . . . . . . . . . . . . . . Max Security . | . . . . . . . . . . . . . . . . . . . . . . . . . . . . . 97 . . Squads Dispatched 38 | . . . . . 9 5 5 . 6 . . . 3 . . . . 5 . . . 1 1 . . . . . . 1 2 Investigation 14 | . . . . . 1 1 4 . 3 . . . 1 . . . . 3 . . . 1 . . . . . . . . . Extermination 4 | . . . . . . . 1 . . . . . 2 . . . . . . . . . 1 . . . . . . . . Reinforcement 14 | . . . . . 4 3 . . 3 . . . . . . . . 1 . . . . . . . . . . . 1 2 Assault 4 | . . . . . 3 . . . . . . . . . . . . 1 . . . . . . . . . . . . . Garrison 2 | . . . . . 1 1 . . . . . . . . . . . . . . . . . . . . . . . . . Intercept . | . . . . . . . . . . . . . . . . . . . . . . . . . . . . . . . . Construction Impeded 4 | . . . . . 2 1 . . 1 . . . . . . . . . . . . . . . . . . . . . . Haulers Reinforced 2 | . . . . . . . . . . . . . . . . . . 1 . . . . . . . . . . . . 1 Stealth | -11 -10 -10 -10 -9 -8 -8 -7 -7 -7 -7 -7 -6 -6 -6 -6 -6 -5 -5 -5 -5 -5 -4 -4 -4 -4 -4 -3 -3 -3 -2 -1 --------- Run | Scr Mat Min Exi Min Mat Sto Fac Was Fac Low Zio Pro Fac Low Low Dat Pro Fac Upp Upp War Pro Fac Upp Upp Zhi Pro Res Tes Res Acc Distress Signals 23 | . . . . . 4 8 4 . 1 . . . . . . . 1 1 . . . . . . . . . 1 1 . 2 Communications Jammed . | . . . . . . . . . . . . . . . . . . . . . . . . . . . . . . . . Distress Signals . | . . . . . . . . . . . . . . . . . . . . . . . . . . . . . . . . Times Spotted 397 | . 19 11 . 2 75 48 41 . 25 . . 10 10 . 3 . 18 13 2 5 1 15 19 8 2 . 1 9 12 16 32 Peak Tracking Total 18 | . 4 3 . 2 12 8 18 . 6 . . 6 5 . 3 . 5 3 1 4 1 9 8 5 2 . 1 8 12 11 18 Tactical Retreats 44 | . 1 2 . . 4 9 10 . 1 . . 2 . . . . 2 2 . 1 . 2 1 2 . . . 1 . 2 2 Traps | -11 -10 -10 -10 -9 -8 -8 -7 -7 -7 -7 -7 -6 -6 -6 -6 -6 -5 -5 -5 -5 -5 -4 -4 -4 -4 -4 -3 -3 -3 -2 -1 ------- Run | Scr Mat Min Exi Min Mat Sto Fac Was Fac Low Zio Pro Fac Low Low Dat Pro Fac Upp Upp War Pro Fac Upp Upp Zhi Pro Res Tes Res Acc Traps Triggered 8 | . . . . . 2 1 3 . . . . . 1 . . . . . . . . . 1 . . . . . . . . Indirectly . | . . . . . . . . . . . . . . . . . . . . . . . . . . . . . . . . Trap Hack Attempts . | . . . . . . . . . . . . . . . . . . . . . . . . . . . . . . . . Triggered . | . . . . . . . . . . . . . . . . . . . . . . . . . . . . . . . . Disarmed . | . . . . . . . . . . . . . . . . . . . . . . . . . . . . . . . . Reprogrammed 16 | . . . . . . . . . . . . . . . . . . 16 . . . . . . . . . . . . . Reused 10 | . . . . . . . . . . . . 1 . . . . . 9 . . . . . . . . . . . . . Traps Extracted . | . . . . . . . . . . . . . . . . . . . . . . . . . . . . . . . . Installed 15 | . . . . . . . . . . . . 10 . . . . . . . 5 . . . . . . . . . . . Triggered 17 | . . . . . . . . . . . . 1 . . . . 1 9 . 2 3 . . . 1 . . . . . . Machines | -11 -10 -10 -10 -9 -8 -8 -7 -7 -7 -7 -7 -6 -6 -6 -6 -6 -5 -5 -5 -5 -5 -4 -4 -4 -4 -4 -3 -3 -3 -2 -1 ---------- Run | Scr Mat Min Exi Min Mat Sto Fac Was Fac Low Zio Pro Fac Low Low Dat Pro Fac Upp Upp War Pro Fac Upp Upp Zhi Pro Res Tes Res Acc Machines Disabled 21 | . 1 . . 1 5 3 3 . 4 . . . . . . . . . . . . . 3 . . . . . . . 1 Max in Single Turn 2 | . 1 . . 1 1 1 2 . 2 . . . . . . . . . . . . . 2 . . . . . . . 1 Garrison Access 2 | . . . . . 1 . . . 1 . . . . . . . . . . . . . . . . . . . . . . Energy Cycler 1 | . . . . . . . . . . . . . . . . . . . . . . . . . . . . . . . 1 Machines Sabotaged . | . . . . . . . . . . . . . . . . . . . . . . . . . . . . . . . . Garrisons Compromised . | . . . . . . . . . . . . . . . . . . . . . . . . . . . . . . . . Overloaded Fab Kills . | . . . . . . . . . . . . . . . . . . . . . . . . . . . . . . . . Fab Network Shutdowns 2 | . . . . . . . . . 1 . . . . . . . . 1 . . . . . . . . . . . . . Hacking | -11 -10 -10 -10 -9 -8 -8 -7 -7 -7 -7 -7 -6 -6 -6 -6 -6 -5 -5 -5 -5 -5 -4 -4 -4 -4 -4 -3 -3 -3 -2 -1 --------- Run | Scr Mat Min Exi Min Mat Sto Fac Was Fac Low Zio Pro Fac Low Low Dat Pro Fac Upp Upp War Pro Fac Upp Upp Zhi Pro Res Tes Res Acc Machines Accessed 97 | . 4 . 1 . 5 10 7 . 10 . 1 . 13 1 2 4 . 10 . . 5 1 7 . 1 4 . 3 . 3 5 Terminals 49 | . 4 . . . 3 10 4 . 6 . . . 7 . . . . 6 . . . 1 3 . . . . 1 . 2 2 Fabricators 8 | . . . . . . . . . 1 . . . 1 . . . . 2 . . . . 3 . . . . . . . 1 Repair Stations 3 | . . . . . . . . . . . . . 1 . . . . 1 . . . . . . . . . . . . 1 Recycling Units . | . . . . . . . . . . . . . . . . . . . . . . . . . . . . . . . . Scanalyzers 13 | . . . . . 2 . 3 . 2 . . . 2 . . . . 1 . . . . 1 . . . . 1 . 1 . Garrison Access 5 | . . . . . . . . . 1 . . . 2 . . . . . . . . . . . . . . 1 . . 1 Total Hacks 385 | . 9 . 1 . 21 22 18 . 34 . 5 . 50 1 2 26 . 58 . . 13 9 50 . 1 17 . 14 . 14 20 Successful 311 | . 6 . 1 . 15 15 6 . 23 . 5 . 44 1 2 26 . 42 . . 13 9 46 . 1 17 . 10 . 11 18 Failed 73 | . 3 . . . 6 7 12 . 11 . . . 5 . . . . 16 . . . . 4 . . . . 4 . 3 2 Catastrophic 6 | . . . . . . 1 2 . 2 . . . . . . . . . . . . . 1 . . . . . . . . Database Lockouts 1 | . . . . . . . . . . . . . 1 . . . . . . . . . . . . . . . . . . Manual 115 | . 4 . 1 . 9 5 5 . 12 . . . 21 . . . . 25 . . 1 . 14 . . . . 5 . 4 9 Terminals 193 | . 9 . . . 13 22 7 . 24 . . . 27 . . . . 39 . . . 9 19 . . . . 6 . 7 11 Fabricators 49 | . . . . . . . . . 4 . . . 7 . . . . 13 . . . . 21 . . . . . . . 4 Repair Stations 5 | . . . . . . . . . . . . . 3 . . . . 1 . . . . . . . . . . . . 1 Recycling Units . | . . . . . . . . . . . . . . . . . . . . . . . . . . . . . . . . Scanalyzers 59 | . . . . . 8 . 11 . 5 . . . 8 . . . . 5 . . . . 10 . . . . 5 . 7 . Garrison Access 13 | . . . . . . . . . 1 . . . 5 . . . . . . . . . . . . . . 3 . . 4 Terminal Hacks 171 | . 4 . 1 . 7 12 2 . 11 . 5 . 16 1 2 26 . 17 . . 13 9 10 . 1 17 . 3 . 5 9 Record 33 | . . . . . . . . . 1 . . . 2 . . 11 . . . . 5 9 . . . 5 . . . . . Part Schematic 21 | . . . . . . . . . . . 5 . 1 . . 6 . 3 . . . . 2 . . 4 . . . . . Robot Schematic 10 | . . . . . . . . . . . . . 2 . . 6 . . . . . . 1 . . . . . . . 1 Robot Analysis 8 | . . . . . . . 1 . . . . . 1 . . . . . . . . . 1 . . 4 . . . 1 . Prototype ID Bank 18 | . 1 . . . . . . . . . . . 1 . . 3 . . . . 6 . . . . 4 . . . 1 2 Open Door 11 | . . . . . . 5 . . . . . . . 1 2 . . . . . 2 . . . 1 . . . . . . Level Access Points 4 | . . . . . . . . . . . . . 1 . . . . 1 . . . . . . . . . . . 1 1 Branch Access Points 5 | . . . . . 1 . . . 1 . . . 1 . . . . 1 . . . . 1 . . . . . . . . Emergency Access Points 3 | . . . . . . . . . . . . . . . . . . . . . . . . . . . . 1 . 1 1 Machine Index 4 | . . . . . . . . . . . . . . . . . . 1 . . . . 1 . . . . . . 1 1 Terminal Index 2 | . . . . . . . . . 1 . . . . . . . . 1 . . . . . . . . . . . . . Fabricator Index 1 | . . . . . . . . . 1 . . . . . . . . . . . . . . . . . . . . . . Repair Station Index 1 | . 1 . . . . . . . . . . . . . . . . . . . . . . . . . . . . . . Recycling Unit Index 1 | . . . . . . . . . . . . . . . . . . . . . . . . . . . . 1 . . . Scanalyzer Index 3 | . . . . . 1 . 1 . 1 . . . . . . . . . . . . . . . . . . . . . . Garrison Index 1 | . . . . . . . . . . . . . 1 . . . . . . . . . . . . . . . . . . Alert Level 9 | . . . . . 1 2 . . 2 . . . 2 . . . . 1 . . . . 1 . . . . . . . . Unreport Threat 5 | . . . . . 1 1 . . . . . . . . . . . 1 . . . . . . . . . . . . 2 Locate Traps 8 | . 2 . . . . 1 . . 1 . . . 1 . . . . 1 . . . . 1 . . . . 1 . . . Reprogram Traps 3 | . . . . . . . . . . . . . . . . . . 3 . . . . . . . . . . . . . Dispatch Records 1 | . . . . . . . . . . . . . 1 . . . . . . . . . . . . . . . . . . Transport Status 1 | . . . . . 1 . . . . . . . . . . . . . . . . . . . . . . . . . . Recall Investigation 1 | . . . . . . . . . . . . . . . . . . 1 . . . . . . . . . . . . . Hauler Manifests 2 | . . . . . 1 1 . . . . . . . . . . . . . . . . . . . . . . . . . Registered Components 1 | . . . . . . 1 . . . . . . . . . . . . . . . . . . . . . . . . . Registered Prototypes 2 | . . . . . . . . . . . . . 1 . . . . . . . . . 1 . . . . . . . . Zone Layout 11 | . . . . . 1 1 . . 3 . . . 1 . . . . 3 . . . . 1 . . . . . . . 1 EX-Prototype ID Bank 1 | . . . 1 . . . . . . . . . . . . . . . . . . . . . . . . . . . . Fabricator Hacks 35 | . . . . . . . . . 4 . . . 5 . . . . 9 . . . . 15 . . . . . . . 2 Network Status 8 | . . . . . . . . . 1 . . . 1 . . . . 2 . . . . 4 . . . . . . . . Load Schematic 14 | . . . . . . . . . 2 . . . 1 . . . . 4 . . . . 6 . . . . . . . 1 Build 13 | . . . . . . . . . 1 . . . 3 . . . . 3 . . . . 5 . . . . . . . 1 Repair Station Hacks 4 | . . . . . . . . . . . . . 3 . . . . . . . . . . . . . . . . . 1 Scan Component 1 | . . . . . . . . . . . . . 1 . . . . . . . . . . . . . . . . . . Repair 1 | . . . . . . . . . . . . . 1 . . . . . . . . . . . . . . . . . . Refit 2 | . . . . . . . . . . . . . 1 . . . . . . . . . . . . . . . . . 1 Recycling Unit Hacks . | . . . . . . . . . . . . . . . . . . . . . . . . . . . . . . . . Scanalyzer 40 | . . . . . 6 . 2 . 4 . . . 7 . . . . 2 . . . . 10 . . . . 4 . 5 . Insert Component 19 | . . . . . 3 . 2 . 2 . . . 4 . . . . 1 . . . . 3 . . . . 2 . 2 . Analyze 21 | . . . . . 3 . . . 2 . . . 3 . . . . 1 . . . . 7 . . . . 2 . 3 . Garrison Access Hacks 1 | . . . . . . . . . 1 . . . . . . . . . . . . . . . . . . . . . . Seal Access 1 | . . . . . . . . . 1 . . . . . . . . . . . . . . . . . . . . . . Unauthorized Hacks 60 | . 2 . . . 2 3 2 . 3 . . . 13 . . . . 14 . . . . 11 . . . . 3 . 1 6 Terminals 33 | . 2 . . . 2 3 1 . 3 . . . 5 . . . . 8 . . . . 5 . . . . 1 . 1 2 Track 3 | . . . . . . . . . . . . . . . . . . 2 . . . . 1 . . . . . . . . Assimilate 6 | . . . . . . . . . 2 . . . 1 . . . . 3 . . . . . . . . . . . . . Botnet 15 | . 1 . . . 1 2 1 . 1 . . . 3 . . . . 2 . . . . 2 . . . . 1 . . 1 Disrupt 3 | . . . . . . . . . . . . . 1 . . . . . . . . . 1 . . . . . . 1 . Operators 6 | . 1 . . . 1 1 . . . . . . . . . . . 1 . . . . 1 . . . . . . . 1 Fabricators 13 | . . . . . . . . . . . . . 2 . . . . 4 . . . . 6 . . . . . . . 1 Report 2 | . . . . . . . . . . . . . . . . . . 1 . . . . 1 . . . . . . . . Prioritize 5 | . . . . . . . . . . . . . 1 . . . . 1 . . . . 2 . . . . . . . 1 Siphon 4 | . . . . . . . . . . . . . 1 . . . . 1 . . . . 2 . . . . . . . . Haulers 2 | . . . . . . . . . . . . . . . . . . 1 . . . . 1 . . . . . . . . Repair Stations 1 | . . . . . . . . . . . . . . . . . . 1 . . . . . . . . . . . . . Mechanics 1 | . . . . . . . . . . . . . . . . . . 1 . . . . . . . . . . . . . Recycling Units . | . . . . . . . . . . . . . . . . . . . . . . . . . . . . . . . . Scanalyzers 3 | . . . . . . . 1 . . . . . 1 . . . . 1 . . . . . . . . . . . . . Extract 3 | . . . . . . . 1 . . . . . 1 . . . . 1 . . . . . . . . . . . . . Garrison Access 10 | . . . . . . . . . . . . . 5 . . . . . . . . . . . . . . 2 . . 3 Broadcast 3 | . . . . . . . . . . . . . 2 . . . . . . . . . . . . . . . . . 1 Decoy 1 | . . . . . . . . . . . . . . . . . . . . . . . . . . . . . . . 1 Reprogram 5 | . . . . . . . . . . . . . 3 . . . . . . . . . . . . . . 1 . . 1 Intercept 1 | . . . . . . . . . . . . . . . . . . . . . . . . . . . . 1 . . . Data Cores Recovered . | . . . . . . . . . . . . . . . . . . . . . . . . . . . . . . . . Used . | . . . . . . . . . . . . . . . . . . . . . . . . . . . . . . . . Hacking Detections 53 | . 2 . . . 5 5 7 . 6 . . . 7 . . . . 8 . . . 1 4 . . . . 2 . 2 4 Full Trace Events 9 | . . . . . 1 1 2 . 2 . . . . . . . . 2 . . . 1 . . . . . . . . . Feedback Events 3 | . . . . . . . 2 . . . . . . . . . . 1 . . . . . . . . . . . . . Corruption 3 | . . . . . . . 2 . . . . . . . . . . 1 . . . . . . . . . . . . . Feedback Blocked . | . . . . . . . . . . . . . . . . . . . . . . . . . . . . . . . . Robot Schematics Acquired 10 | . . . . . . . . . . . . . 2 . . 6 . . . . . . 1 . . . . . . . 1 Robots Built 3 | . . . . . . . . . . . . . . . . . . . . . . . . . . . . . . . 3 Matter 351 | . . . . . . . . . . . . . . . . . . . . . . . . . . . . . . . 351 Time 31 | . . . . . . . . . . . . . . . . . . . . . . . . . . . . . . . 31 Total Robot Build Rating 21 | . . . . . . . . . . . . . . . . . . . . . . . . . . . . . . . 21 Part Schematics Acquired 69 | . . . . . 2 . 8 . 2 . 5 . 12 . . 6 . 21 . . . . 5 . . 4 . 2 . 2 . Parts Built 13 | . . . . . . . . . 1 . . . 3 . . . . 3 . . . . 6 . . . . . . . . Matter 2428 | . . . . . . . . . 146 . . . 794 . . . . 626 . . . . 862 . . . . . . . . Time 925 | . . . . . . . . . 73 . . . 337 . . . . 218 . . . . 297 . . . . . . . . Total Part Build Rating 70 | . . . . . . . . . 3 . . . 18 . . . . 18 . . . . 31 . . . . . . . . Parts Repaired 1 | . . . . . . . . . . . . . 1 . . . . . . . . . . . . . . . . . . Time 112 | . . . . . . . . . . . . . 112 . . . . . . . . . . . . . . . . . . Parts Recycled . | . . . . . . . . . . . . . . . . . . . . . . . . . . . . . . . . Recycled Matter . | . . . . . . . . . . . . . . . . . . . . . . . . . . . . . . . . Retrieved Matter . | . . . . . . . . . . . . . . . . . . . . . . . . . . . . . . . . Retrieved Components . | . . . . . . . . . . . . . . . . . . . . . . . . . . . . . . . . Parts Scanalyzed 15 | . . . . . 3 . . . 1 . . . 3 . . . . 1 . . . . 3 . . . . 2 . 2 . Part Schematics Acquired 15 | . . . . . 2 . . . 2 . . . 3 . . . . 1 . . . . 3 . . . . 2 . 2 . Parts Damaged 1 | . . . . . . . . . . . . . . . . . . . . . . . . . . . . 1 . . . Bothacking | -11 -10 -10 -10 -9 -8 -8 -7 -7 -7 -7 -7 -6 -6 -6 -6 -6 -5 -5 -5 -5 -5 -4 -4 -4 -4 -4 -3 -3 -3 -2 -1 ------------ Run | Scr Mat Min Exi Min Mat Sto Fac Was Fac Low Zio Pro Fac Low Low Dat Pro Fac Upp Upp War Pro Fac Upp Upp Zhi Pro Res Tes Res Acc Used RIF Installer . | . . . . . . . . . . . . . . . . . . . . . . . . . . . . . . . . Robots Hacked 19 | . . . 4 . . . 1 . 2 . . . . . . . . 3 . . 3 . . . . 3 . 2 . 1 . Non-combat 11 | . . . 3 . . . 1 . 2 . . . . . . . . 2 . . . . . . . . . 2 . 1 . Combat 8 | . . . 1 . . . . . . . . . . . . . . 1 . . 3 . . . . 3 . . . . . Robot Hacks Applied 22 | . . . 4 . . . 2 . 3 . . . . . . . . 4 . . 3 . . . . 3 . 2 . 1 . parse_system 12 | . . . 4 . . . . . . . . . . . . . . 1 . . 3 . . . . 3 . . . 1 . no_distress 3 | . . . . . . . 1 . 1 . . . . . . . . 1 . . . . . . . . . . . . . find_fabricator 7 | . . . . . . . 1 . 2 . . . . . . . . 2 . . . . . . . . . 2 . . . Relay Couplers Released 2 | . . . . . 2 . . . . . . . . . . . . . . . . . . . . . . . . . . Machine Destruction 2 | . . . . . 2 . . . . . . . . . . . . . . . . . . . . . . . . . . Robots Rewired . | . . . . . . . . . . . . . . . . . . . . . . . . . . . . . . . . Allies Hacked . | . . . . . . . . . . . . . . . . . . . . . . . . . . . . . . . . Hacks Repelled . | . . . . . . . . . . . . . . . . . . . . . . . . . . . . . . . . Allies | -11 -10 -10 -10 -9 -8 -8 -7 -7 -7 -7 -7 -6 -6 -6 -6 -6 -5 -5 -5 -5 -5 -4 -4 -4 -4 -4 -3 -3 -3 -2 -1 -------- Run | Scr Mat Min Exi Min Mat Sto Fac Was Fac Low Zio Pro Fac Low Low Dat Pro Fac Upp Upp War Pro Fac Upp Upp Zhi Pro Res Tes Res Acc Total Allies 43 | . . 2 . 3 . 2 . 20 1 . . . 2 . . . 1 3 . . . . . . . . . . . . 9 Largest Group 20 | . . 2 2 3 3 2 . 20 20 . . . 1 . . . 1 3 . . . . . . . . . . . . 6 Highest-Rated Group 545 | . . 46 46 40 40 115 . 545 545 . . . 38 . . . 94 88 . . . . . . . . . . . . 362 Highest-Rated Ally 99 | . . 31 31 16 16 99 . 35 35 . . . 38 . . . 94 88 . . . . . . . . . . . . 94 Total Orders 7 | . . . . . . 1 . . . . . . . . . 2 . . . . . . . . . . . . . . 4 EXPLORE 6 | . . . . . . 1 . . . . . . . . . 1 . . . . . . . . . . . . . . 4 RETURN 1 | . . . . . . . . . . . . . . . . 1 . . . . . . . . . . . . . . . Ally Attacks 308 | . . . . . 71 41 . . 176 . . . 1 . . . 8 . . . . . . . . . . . . . 11 Total Damage 5814 | . . . . . 639 911 . . 3845 . . . 34 . . . 95 . . . . . . . . . . . . . 290 Kills 62 | . . . . . 11 14 . . 34 . . . . . . . 2 . . . . . . . . . . . . . 1 Allies Corrupted . | . . . . . . . . . . . . . . . . . . . . . . . . . . . . . . . . Allies Melted . | . . . . . . . . . . . . . . . . . . . . . . . . . . . . . . . . Intel | -11 -10 -10 -10 -9 -8 -8 -7 -7 -7 -7 -7 -6 -6 -6 -6 -6 -5 -5 -5 -5 -5 -4 -4 -4 -4 -4 -3 -3 -3 -2 -1 ------- Run | Scr Mat Min Exi Min Mat Sto Fac Was Fac Low Zio Pro Fac Low Low Dat Pro Fac Upp Upp War Pro Fac Upp Upp Zhi Pro Res Tes Res Acc Robot Analysis Total 8 | . . . . . . . 1 . . . . . 1 . . . . . . . . . 1 . . 4 . . . 1 . Derelict Logs Recovered 6 | . . 1 . . . . . . . . 1 1 . . . . 1 . . 1 . 1 . . . . . . . . . Drone Launches 8 | . . . . . . 4 . . . . . . . . . 1 . . . . . . . . . . . . . . 3 Drone Recoveries 3 | . . . . . . 2 . . . . . . . . . 1 . . . . . . . . . . . . . . . Exploration | -11 -10 -10 -10 -9 -8 -8 -7 -7 -7 -7 -7 -6 -6 -6 -6 -6 -5 -5 -5 -5 -5 -4 -4 -4 -4 -4 -3 -3 -3 -2 -1 ------------- Run | Scr Mat Min Exi Min Mat Sto Fac Was Fac Low Zio Pro Fac Low Low Dat Pro Fac Upp Upp War Pro Fac Upp Upp Zhi Pro Res Tes Res Acc Turns Passed 10655 | 63 901 634 402 232 2056 1045 566 163 374 5 317 183 1064 92 121 66 249 647 51 106 124 63 406 49 52 52 51 163 34 103 221 Spaces Moved 16907 | 37 432 297 218 115 860 1010 1563 352 928 15 960 525 1534 329 419 84 575 1199 244 469 646 354 880 240 251 176 247 447 143 471 887 Core 12 | 12 . . . . . . . . . . . . . . . . . . . . . . . . . . . . . . . Treads 2174 | 25 432 297 218 115 860 227 . . . . . . . . . . . . . . . . . . . . . . . . . Legs . | . . . . . . . . . . . . . . . . . . . . . . . . . . . . . . . . Wheels . | . . . . . . . . . . . . . . . . . . . . . . . . . . . . . . . . Hover . | . . . . . . . . . . . . . . . . . . . . . . . . . . . . . . . . Flight 14721 | . . . . . . 783 1563 352 928 15 960 525 1534 329 419 84 575 1199 244 469 646 354 880 240 251 176 247 447 143 471 887 Fastest Speed 14 | 50 160 180 180 180 160 29 26 32 29 32 32 29 21 27 22 22 22 18 18 18 17 17 17 20 20 20 20 16 18 14 17 Average Speed 44 | 124 176 180 180 180 175 66 33 32 30 32 32 30 28 27 25 22 22 18 18 18 17 17 19 20 20 20 20 19 18 16 17 Slowest Speed 230 | 160 180 180 180 180 220 230 105 32 99 32 32 32 102 27 27 22 22 19 18 18 18 17 20 20 20 20 20 20 18 21 21 Overloaded Moves 415 | . . . . . . . 415 . . . . . . . . . . . . . . . . . . . . . . . . Propulsion Burnouts . | . . . . . . . . . . . . . . . . . . . . . . . . . . . . . . . . Robots Hopped 85 | . . . . . . 17 12 2 2 . . . 3 . . . . 18 1 . 1 1 6 2 . . . . 1 2 17 Cave-ins Triggered . | . . . . . . . . . . . . . . . . . . . . . . . . . . . . . . . . Exploration Rate (%) 49 | 4 71 62 62 33 81 90 35 96 31 3 83 67 23 52 51 68 58 24 46 65 92 72 21 51 47 60 53 15 28 15 25 Regions Visited 31 Branch Regions 20 Pre-discovered Areas 10 | . . 1 . . . . . . . . 3 1 . . . 1 . . . . . 1 . . . 3 . . . . . Known Exits Taken 12 | . . . . . 1 . . . 1 . . . 1 . . . 1 1 . 1 . 1 1 1 1 . . . 1 1 . Unknown Exits Taken 17 | 1 1 1 1 1 . 1 . . . 1 1 1 . 1 1 1 . . 1 . 1 . . . . 1 1 1 . . . Scrap Searched 19 | . . 1 . 1 . . . . . . 2 4 . . 1 . . . 1 2 . 2 . 1 1 . 3 . . . . Spaces Dug 47 | . . . . . 8 . 1 . 3 . . . 18 . 6 . . 9 1 . . . . . . . . . . . 1 Terrain Destroyed 454 | . 10 . . 17 147 109 32 . 13 . . . 18 . 6 . 10 9 39 13 . 13 8 . . . . . . . 10 Melee 38 | . . . . . . . 1 . 3 . . . 18 . 6 . . 9 1 . . . . . . . . . . . . Projectile 3 | . . . . . . . . . 1 . . . . . . . 1 . . . . . . . . . . . . . 1 AOE 413 | . 10 . . 17 147 109 31 . 9 . . . . . . . 9 . 38 13 . 13 8 . . . . . . . 9 Terrain Rammed . | . . . . . . . . . . . . . . . . . . . . . . . . . . . . . . . . Walls Destroyed . | . . . . . . . . . . . . . . . . . . . . . . . . . . . . . . . . Machines Disabled . | . . . . . . . . . . . . . . . . . . . . . . . . . . . . . . . . Actions | -11 -10 -10 -10 -9 -8 -8 -7 -7 -7 -7 -7 -6 -6 -6 -6 -6 -5 -5 -5 -5 -5 -4 -4 -4 -4 -4 -3 -3 -3 -2 -1 --------- Run | Scr Mat Min Exi Min Mat Sto Fac Was Fac Low Zio Pro Fac Low Low Dat Pro Fac Upp Upp War Pro Fac Upp Upp Zhi Pro Res Tes Res Acc Total 19301 | 52 504 342 224 127 1226 1237 1580 399 984 14 968 547 2124 331 425 130 671 1579 245 481 652 353 1088 238 251 191 247 520 150 491 930 Wait 1653 | . 1 2 . . 168 103 . 46 24 . . 9 534 . . 47 68 347 . . . . 182 . . . . 69 5 10 38 Move 16722 | 36 431 296 217 114 859 977 1543 348 923 14 959 524 1529 328 418 83 574 1164 241 468 643 351 867 235 250 175 246 446 141 466 856 Hop 70 | . . . . . . 15 8 1 2 . . . 1 . . . . 16 1 . 1 1 6 2 . . . . 1 2 13 Pick Up 133 | 8 21 9 1 . 30 12 3 3 2 . 2 . 9 1 . . 1 8 . . 1 . 7 . 1 3 . 1 2 4 4 Fast Attach 34 | . . . . . 2 5 3 . 4 . 4 2 2 . . . . . . . 1 . 3 . . 3 1 . . 2 2 Attach 110 | 7 7 5 1 1 21 23 5 1 3 . 1 . 7 1 1 . 1 5 . . 1 . 6 1 . 2 . 2 1 3 4 Detach . | . . . . . . . . . . . . . . . . . . . . . . . . . . . . . . . . Swap 5 | . 1 . . . 1 2 . . . . . . . . . . . . . . . . . . . . . . . . 1 Drop 67 | . 5 2 1 1 12 11 4 . 3 . 2 1 5 1 . . 1 4 . . 2 . 3 . . 5 . . . 1 3 Fire 353 | 1 36 28 . 10 128 85 3 . 7 . . . . . . . 25 . 2 1 . 1 14 . . . . . . 3 9 Melee 124 | . . . 4 . . . 8 . 16 . . 1 37 . 6 . 1 35 1 7 3 . . . . 3 . 2 . . . Ram . | . . . . . . . . . . . . . . . . . . . . . . . . . . . . . . . . Kick . | . . . . . . . . . . . . . . . . . . . . . . . . . . . . . . . . Crush 12 | . 2 . . 1 5 4 . . . . . . . . . . . . . . . . . . . . . . . . . Escape Stasis . | . . . . . . . . . . . . . . . . . . . . . . . . . . . . . . . . Rewire 3 | . . . . . . . 3 . . . . . . . . . . . . . . . . . . . . . . . . Trap 15 | . . . . . . . . . . . . 10 . . . . . . . 5 . . . . . . . . . . . Miscellaneous . | . . . . . . . . . . . . . . . . . . . . . . . . . . . . . . . . Route ------- -11/Scrapyard -10/Materials (discovered 2 exits: [*Mat] / [*Min]) -10/Mines -10/Exiles -9/Mines -8/Materials (discovered 3 exits: *Fac x2 / *Sto) -8/Storage -7/Factory -7/Waste -7/Factory (discovered 2 exits: *Low x2) -7/Lower Caves -7/Zion -6/Proximity Caves -6/Factory (discovered 8 exits: *Fac x4 / *Low x2 / Ext x2) -6/Lower Caves -6/Lower Caves -6/Data Miner -5/Proximity Caves -5/Factory (discovered 6 exits: Fac x4 / *Upp x2) -5/Upper Caves -5/Upper Caves (discovered 2 exits: *Fac / *War) -5/Warlord -4/Proximity Caves -4/Factory (discovered 3 exits: *Res / *Upp x2) -4/Upper Caves -4/Upper Caves -4/Zhirov -3/Proximity Caves -3/Research (discovered 4 exits: Res / Arm / [*Tes x2]) -3/Testing -2/Research (discovered 3 exits: *Acc x3) -1/Access To Epsilon Eridani History --------- Turn | Location | Event 8 | -11/Scrapyard | Discovered new exit (range 14) 64 | -11/Scrapyard | Entered Materials 310 | -10/Materials | Build established: Mutant 632 | -10/Materials | Discovered new exit (range 10) 733 | -10/Materials | Discovered new exit (range 16) 965 | -10/Materials | Entered Mines 1059 | -10/Mines | Assembled infested the area 1133 | -10/Mines | Build established: Hauler-Mutant 1214 | -10/Mines | Core integrity fell below 50% 1263 | -10/Mines | Learned 2 Materials zone layouts 1348 | -10/Mines | Joined a pair of Derelicts in attacking an 0b10 outpost 1470 | -10/Mines | Learned location of Storage (-8) 1586 | -10/Mines | Deemed a non-threat by the Exiles lab entrance 1588 | -10/Mines | Discovered new exit (range 5) 1599 | -10/Mines | Entered Exiles 1599 | -10/Exiles | Accompanied by 2 allies 1629 | -10/Exiles | Led the pair of lost Derelicts to a safe place 1643 | -10/Exiles | Met 8R-AWN 1684 | -10/Exiles | Met EX-HEX 1735 | -10/Exiles | Met EX-BIN 1758 | -10/Exiles | Aligned with FarCom system 1760 | -10/Exiles | Given EX-Vault access code 1801 | -10/Exiles | Opened EX-Vault 1814 | -10/Exiles | Found Superbattery 1853 | -10/Exiles | Warned to stay clear of 0b10 Research branches 1905 | -10/Exiles | Met EX-DEC 1986 | -10/Exiles | Discovered new exit (range 10) 2001 | -10/Exiles | Left Exiles lab with Superbattery 2001 | -10/Exiles | Entered Mines 2018 | -9/Mines | Met a Derelict bent on vengeance 2178 | -9/Mines | Discovered new exit (range 15) 2226 | -9/Mines | Assisted by bots powering up and referring to "LRC-V3" 2233 | -9/Mines | Entered Materials 2233 | -8/Materials | Accompanied by 3 allies 2233 | -8/Materials | Evolved 4 slots: Propulsion x1, Utility x3 2694 | -8/Materials | Garrison activated, responded to threat 2792 | -8/Materials | Destroyed 8 combat bots 2850 | -8/Materials | Lost 3 parts (1u2w) 2896 | -8/Materials | Discovered new exit (range 16) 3033 | -8/Materials | First assault squad dispatched 3134 | -8/Materials | Discovered new exit (range 3) 3335 | -8/Materials | Identified exit to Storage 3744 | -8/Materials | Build established: Scavenger-Mutant 4231 | -8/Materials | Build established: Hauler-Mutant 4289 | -8/Materials | Entered Storage 4441 | -8/Storage | Lost 3 parts (1p1u1w) 4650 | -8/Storage | Lost 4 parts (2n2u) 4917 | -8/Storage | Core integrity fell below 50% 4979 | -8/Storage | Met 01-MTF 4988 | -8/Storage | Lost 10 parts (1p4n2u3w) 5077 | -8/Storage | Discovered new exit (range 15) 5219 | -8/Storage | Build established: Sprinter 5260 | -8/Storage | Garrison activated, responded to threat 5304 | -8/Storage | Destroyed 01-MTF 5334 | -8/Storage | Entered Factory 5334 | -7/Factory | Evolved 2 slots: Utility x2 5605 | -7/Factory | Discovered new exit (range 12) 5887 | -7/Factory | Lost 5 parts (1p1n2u1w) 5900 | -7/Factory | Sucked down chute 5900 | -7/Factory | Entered Waste 5901 | -7/Waste | Joined by Warlord forces that had cleared the area 5925 | -7/Waste | Discovered new exit (range 15) 6063 | -7/Waste | Entered Factory 6063 | -7/Factory | Accompanied by 20 allies 6204 | -7/Factory | Discovered new exit (range 5) 6335 | -7/Factory | Identified exit to Lower Caves 6361 | -7/Factory | Local fabrication network quarantined 6369 | -7/Factory | Core integrity fell below 50% 6424 | -7/Factory | Fabricated Hacking Suite? 6437 | -7/Factory | Entered Lower Caves 6438 | -7/Lower Caves | A Derelict revealed a hidden shortcut to a safe place 6442 | -7/Lower Caves | Entered Zion 6464 | -7/Zion | Given A8's code to call for help 6467 | -7/Zion | System corruption cleaned by Quarantine Array 6485 | -7/Zion | Learned location of Warlord (-5) 6526 | -7/Zion | Learned location of Armory (-3) 6531 | -7/Zion | Received a visual enhancement algorithm 6540 | -7/Zion | Learned Factory interactive machine intel 6560 | -7/Zion | Learned location of Data Miner (-6) 6570 | -7/Zion | Given the Hacking Drone Bay 6577 | -7/Zion | Found Prototype Device 6639 | -7/Zion | Acquired unknown access codes intercepted by a Zionite 6640 | -7/Zion | Build established: Hacker-Sprinter 6701 | -7/Zion | Rebuked by Imprinter 6746 | -7/Zion | Discovered new exit (range 14) 6759 | -7/Zion | Entered Proximity Caves 6907 | -6/Proximity Caves | Spotted B-75 Beast 6919 | -6/Proximity Caves | Learned location of Extension (-6) 6938 | -6/Proximity Caves | Discovered new exit (range 10) 6942 | -6/Proximity Caves | Entered Factory 6942 | -6/Factory | Evolved 2 slots: Propulsion x1, Utility x1 6943 | -6/Factory | Loaded intel: 48 interactive machine locations 6947 | -6/Factory | Identified Hacking Drone Bay 7128 | -6/Factory | Identified exit to Factory 7232 | -6/Factory | Central database locked down 7275 | -6/Factory | Identified exit to Lower Caves 7275 | -6/Factory | Identified exit to Extension 7386 | -6/Factory | Build established: Wizard-Sprinter 7503 | -6/Factory | Fabricated Exp. Cesium-ion Thruster (x1) 7588 | -6/Factory | Fabricated Exp. Cesium-ion Thruster (x1) 7672 | -6/Factory | Fabricated Exp. Cesium-ion Thruster (x1) 7822 | -6/Factory | Repaired Broken Exp. Cesium-ion Thruster 8006 | -6/Factory | Entered Lower Caves 8072 | -6/Lower Caves | Encountered a Warlord checkpoint 8093 | -6/Lower Caves | Discovered new exit (range 15) 8098 | -6/Lower Caves | Entered another Lower Caves area 8208 | -6/Lower Caves | Discovered new exit (range 14) 8219 | -6/Lower Caves | Entered Data Miner 8219 | -6/Data Miner | Discovered new exit (range 6) 8224 | -6/Data Miner | Met Data Miner 8263 | -6/Data Miner | Learned location of Section 7 (-2) 8263 | -6/Data Miner | Acquired the access code to Warlord's prototype stash 8266 | -6/Data Miner | Received God Mode back door access code from Data Miner 8285 | -6/Data Miner | Entered Proximity Caves 8296 | -5/Proximity Caves | Escorted by Enhanced Grunt 8330 | -5/Proximity Caves | Spotted B-75 Beast 8491 | -5/Proximity Caves | Discovered exit to Factory (range 5) 8496 | -5/Proximity Caves | Learned Factory trap positions 8534 | -5/Proximity Caves | Entered Factory 8534 | -5/Factory | Accompanied by 1 ally 8534 | -5/Factory | Evolved 2 slots: Utility x1, Weapon x1 8535 | -5/Factory | Loaded intel: 91 trap records 8558 | -5/Factory | Discovered new exit (range 9) 8620 | -5/Factory | Identified exit to Factory 8689 | -5/Factory | Identified exit to Upper Caves 8812 | -5/Factory | Fabricated Exp. Propulsion Shielding (x1) 8873 | -5/Factory | Fabricated Reaction Control System (x1) 8958 | -5/Factory | Fabricated Mni. Smartbomb Launcher (x1) 9032 | -5/Factory | Local fabrication network quarantined 9085 | -5/Factory | Incoming investigation squad redirected 9134 | -5/Factory | First assault squad dispatched 9162 | -5/Factory | Incoming assault squad redirected 9181 | -5/Factory | Entered Upper Caves 9190 | -5/Upper Caves | Spotted B-75 Beast 9227 | -5/Upper Caves | Discovered new exit (range 12) 9230 | -5/Upper Caves | Attracted the attention of an 0b10 checkpoint 9232 | -5/Upper Caves | Entered another Upper Caves area 9242 | -5/Upper Caves | Discovered exit to Factory (range 13) 9243 | -5/Upper Caves | Encountered a Warlord checkpoint 9335 | -5/Upper Caves | Identified exit to Warlord 9338 | -5/Upper Caves | Entered Warlord 9344 | -5/Warlord | System corruption cleaned by Quarantine Array 9379 | -5/Warlord | Visited the Vortex Lab 9392 | -5/Warlord | Warlord's base attacked by MAIN.C 9426 | -5/Warlord | Met Warlord 9427 | -5/Warlord | Learned Factory terminal intel 9427 | -5/Warlord | Learned Armory fabricator intel 9427 | -5/Warlord | Learned 4 Research zone layouts 9427 | -5/Warlord | Learned 4 Access zone layouts 9427 | -5/Warlord | Learned 4 Access zone layouts 9436 | -5/Warlord | Opened Warlord's prototype stash 9457 | -5/Warlord | Opened side exit 9461 | -5/Warlord | Discovered new exit (range 10) 9462 | -5/Warlord | Entered Proximity Caves 9468 | -4/Proximity Caves | Spotted B-86 Titan 9471 | -4/Proximity Caves | Learned location of Testing (-3) 9519 | -4/Proximity Caves | Learned location of 2 exits from Upper Caves 9519 | -4/Proximity Caves | Learned location of 1 exit from Research 9519 | -4/Proximity Caves | Learned Armory terminal intel 9519 | -4/Proximity Caves | Learned Factory garrison access intel 9519 | -4/Proximity Caves | Learned Extension garrison access intel 9519 | -4/Proximity Caves | Learned Armory garrison access intel 9525 | -4/Proximity Caves | Attracted the attention of an 0b10 checkpoint 9525 | -4/Proximity Caves | Entered Factory 9525 | -4/Factory | Evolved 2 slots: Power x1, Utility x1 9526 | -4/Factory | Loaded intel: 20 terminal locations 9527 | -4/Factory | Loaded intel: 4 garrison access locations 9589 | -4/Factory | Fabricated Mic. Fission Core (x2) 9676 | -4/Factory | Fabricated Mni. Smartbomb Launcher? 9696 | -4/Factory | Destroyed 9 combat bots 9756 | -4/Factory | Fabricated Exp. Propulsion Shielding (x1) 9806 | -4/Factory | Spotted B-86 Titan 9828 | -4/Factory | Fabricated Adv. Hacking Suite (x1) 9861 | -4/Factory | Fabricated Flamer? 9908 | -4/Factory | Discovered new exit (range 15) 9917 | -4/Factory | Discovered new exit (range 6) 9922 | -4/Factory | Identified exit to Upper Caves 9931 | -4/Factory | Entered Upper Caves 9932 | -4/Upper Caves | Identified exit to Upper Caves 9963 | -4/Upper Caves | Attracted the attention of an 0b10 checkpoint 9963 | -4/Upper Caves | Lost 3 parts (2u1w) 9980 | -4/Upper Caves | Entered another Upper Caves area 9981 | -4/Upper Caves | Identified exit to Zhirov 9988 | -4/Upper Caves | Spotted B-86 Titan 10032 | -4/Upper Caves | Entered Zhirov 10032 | -4/Zhirov | Discovered new exit (range 3) 10036 | -4/Zhirov | Met Zhirov 10048 | -4/Zhirov | Learned location of Quarantine (-2) 10048 | -4/Zhirov | Learned location of Command (-1) 10050 | -4/Zhirov | Zhirov requested help retrieving the SGEMP Prototype 10053 | -4/Zhirov | Found Alien Artifact 10053 | -4/Zhirov | Identified Integrated Reactor 10053 | -4/Zhirov | Installed Integrated Reactor, increased core energy generation (+10) 10069 | -4/Zhirov | Found Alien Artifact 10084 | -4/Zhirov | Entered Proximity Caves 10116 | -3/Proximity Caves | Attracted the attention of an 0b10 checkpoint 10134 | -3/Proximity Caves | Discovered new exit (range 8) 10135 | -3/Proximity Caves | Entered Research 10135 | -3/Research | Evolved 2 slots: Propulsion x1, Utility x1 10136 | -3/Research | Identified exit to Research 10137 | -3/Research | Identified exit to Armory 10256 | -3/Research | Discovered new exit (range 12) 10278 | -3/Research | Spotted B-86 Titan 10294 | -3/Research | Discovered new exit (range 11) 10298 | -3/Research | Entered Testing 10299 | -3/Testing | Maximum security lockdown engaged 10304 | -3/Testing | Found Prototype Processor 10308 | -3/Testing | Identified Spectral Analyzer 10312 | -3/Testing | Discovered exit to Research (range 11) 10332 | -3/Testing | Entered Research 10332 | -2/Research | Warlord forces began assault on 0b10 10332 | -2/Research | Evolved 2 slots: Propulsion x1, Utility x1 10347 | -2/Research | Identified exit to Access 10355 | -2/Research | Lost 5 parts (1p2u2w) 10422 | -2/Research | Spotted B-90 Cyclops 10435 | -2/Research | Entered Access 10435 | -1/Access | Evolved 2 slots: Utility x2 10527 | -1/Access | Identified exit to Surface 10553 | -1/Access | Energy Cycler disabled 10637 | -1/Access | Enhanced Grunt warped into view, answering call for help 10641 | -1/Access | Enhanced Grunt warped into view, answering call for help 10651 | -1/Access | Fabricated G-67 Veteran? 10656 | *** | Escaped! Last Messages --------------- Transmitting encrypted signal... 10630_ The Access Shell folds into the floor. 10631_ K-01 Serf collects debris. 10634_ Imp. Remote Datajack destroyed. 10636_ Matter Neutralizer destroyed. 10636_ Exp. Utility Shielding destroyed. 10637_ Enhanced Grunt warps into view. 10638_ Exp. Propulsion Shielding destroyed. 10641_ Enhanced Grunt warps into view. 10644_ Adv. Plasma Rifle destroyed. 10648_ Backup Power VII destroyed. 10649_ Exp. Cesium-ion Thruster destroyed. 10651_ >> FABRICATOR: Completed G-67 Veteran? 10652_ Enhanced Grunt suffers critical hit. 10654_ Enhanced Grunt destroyed. 10655_ K-01 Serf destroyed. 10655_ K-01 Serf collects debris. 10655_ G-73 Enforcer destroyed. 10656_ Exp. Utility Shielding destroyed. [Achievement: Look Ma, No Swapping!] Map ----- +----------------------------------------------------+ | #??# #?????????????????????????? | | ######## #?????????????????????????? | | | " """""" #?????????????????????????? | | # """""" #?????????????????????????? | | # """""" #?????????????????????????? | | # """""" #?????????????????????????? | | # ! """""" #?????????????????????????? | | # #?????????????????????????? | | # #?????????????????????????? | | ########################?????????????????????????? | | ####### ########################+#####???????? | | Y ss % w ?????? | | s s k % ?????? | | ####### #########s g ""##????????????????? | | ##?????## ########?#s % % ""#?????????????????? | | ????????# # #?# s= = ""#?????????????????? | | ????????# # #?# sggg T#?????????????????? | | ????????# + = #?# s ""#?????????????????? | | ?######## # #?# *%=""#?????????????????? | | ?# # ###u !%!= ""##????????????????? | | ?# # ## !=! #????????????????? | | ?# ######## ### !%! ##????????????????? | | ?# #??????# #?# =! #?????????????????? | | ?# #??????# #?# #?????????????????? | | ?# #??????# #?# #?????????????????? | | ## #??????# #?# @" #?????????????????? | | # #??????# #?# "" #?????????????????? | | # #??????# #?# #?????????????????? | | # #??????########?# #?????????????????? | | # #???????????????# #?????????????????? | | # #???????????????#""""""""""#?????????????????? | | + #????????????????????????????????????????????? | | # #????????????????????????????????????????????? | | # #????????????????????????????????????????????? | | # #????????????????????????????????????????????? | | # #?????????????????BB????BB???????????????????? | | # #?????????????????BB????BB???????????????????? | | # #????????????????????????????????????????????? | | ## #????????????????????????????????????????????? | | ?# #????????????????????????????????????????????? | | ?# #????????????????????????????????????????????? | | ?# #????????????????????????????????????????????? | | ?# #????????????????????????????????????????????? | | ?# #????????????????????????????????????????????? | | ?? #????????????????????????????????????????????? | | ?? #????????????????????????????????????????????? | | ?? #????????????????????????????????????????????? | | ?? #????????????????????????????????????????????? | | ?? #????????????????????????????????????????????? | | ?? #????????????????????????????????????????????? | +----------------------------------------------------+ Best States ------------- Heat Dissipation 74 Energy Generation 60 Energy Capacity 2500 Matter Stores 300 Matter Capacity 300 Sight Range 24 Terrain Scan Density 10 Power Amplification 20 Armor Coverage 375 Resistance: TH 10 Propulsion Shielding 90 Utility Shielding 90 Evasion (%) 78 Recoil Reduction 3 Offensive Hacking 67 Defensive Hacking 35 Item Schematics ----------------- Imp. VTOL Module | -8/Materials | Scanalyzed Hvy. Particle Gun | -8/Materials | Scanalyzed Adv. Assault Cannon | -7/Factory | Extracted Med. Matter Pod | -7/Factory | Extracted Melee Analysis Suite | -7/Factory | Extracted Hcp. Matter Pod | -7/Factory | Extracted Enh. Optical Array | -7/Factory | Extracted Maneuvering Thrusters | -7/Factory | Extracted Imp. Heat Sink | -7/Factory | Extracted Adv. Targeting Computer | -7/Factory | Extracted Hacking Suite | -7/Factory | Scanalyzed Exp. Cesium-ion Thruster | -7/Factory | Scanalyzed Beamcaster | -7/Zion | Free Arc Thrower | -7/Zion | Free Slug Cannon | -7/Zion | Free Flamer | -7/Zion | Free Phasing Sabre | -7/Zion | Free Adv. Hacking Suite | -6/Factory | Hacked Thermal Defense Suite | -6/Factory | Scanalyzed Impact Mace | -6/Factory | Scanalyzed Adv. EMP Blaster | -6/Factory | Scanalyzed Hpw. Tractor Beam | -6/Factory | Extracted Adv. Weight Redist. System | -6/Factory | Extracted Imp. Light Armor Plating | -6/Factory | Extracted Deuterium Engine | -6/Factory | Extracted Adv. Melee Analysis Suite | -6/Factory | Extracted Phase Shifter | -6/Factory | Extracted Sml. Matter Pod | -6/Factory | Extracted Lgt. Angular Momentum Engine | -6/Factory | Extracted Combat Drone Bay | -6/Data Miner | Free Lgt. Regenerative Plating | -6/Data Miner | Free Exp. Sensor Array | -6/Data Miner | Free Exp. ECM Suite | -6/Data Miner | Free Mni. Smartbomb Launcher | -6/Data Miner | Free Kinetic Spear | -6/Data Miner | Free Reaction Control System | -5/Factory | Hacked Exp. Propulsion Shielding | -5/Factory | Hacked Adv. System Shield | -5/Factory | Hacked Prc. Energy Filter | -5/Factory | Scanalyzed Force Field | -5/Factory | Extracted Drone Bay | -5/Factory | Extracted Hpw. Electrolaser | -5/Factory | Extracted Imp. Weapon Cycler | -5/Factory | Extracted Enh. Coil Gun | -5/Factory | Extracted Fusion Compressor | -5/Factory | Extracted Imp. Dynamic Insulation System | -5/Factory | Extracted Shield Generator | -5/Factory | Extracted Gyrokinetic Inverter | -5/Factory | Extracted Imp. Launcher Guidance Computer | -5/Factory | Extracted Imp. EM Pulse Cannon | -5/Factory | Extracted Com. Wheel | -5/Factory | Extracted Point Defense System | -5/Factory | Extracted Adv. Cooling System | -5/Factory | Extracted Recalibrator | -5/Factory | Extracted Angular Momentum Engine | -5/Factory | Extracted Cld. VTOL Module | -5/Factory | Extracted Mic. Fission Core | -4/Factory | Hacked Imp. Diametric Drive | -4/Factory | Scanalyzed Hvy. Proton Missile Launcher | -4/Factory | Scanalyzed Cloaking Device | -4/Factory | Scanalyzed Biometal Heavy Treads | -4/Factory | Hacked Assault Drone Bay | -4/Zhirov | Free Exp. Heat Sink | -4/Zhirov | Free Exp. Optical Array | -4/Zhirov | Free Imp. Arc Thrower | -4/Zhirov | Free Cld. Nuclear Pulse Thruster | -3/Research | Scanalyzed Cld. Field Propulsion Drive | -3/Research | Scanalyzed Proton Burst Cannon | -2/Research | Scanalyzed Adv. Plasma Rifle | -2/Research | Scanalyzed Robot Schematics ------------------ H-55 Commando | -6/Factory | Hacked A-15 Conveyor | -6/Factory | Hacked S-27 Virus | -6/Data Miner | Free G-50 Soldier | -6/Data Miner | Free H-66 Slayer | -6/Data Miner | Free P-70 Sage | -6/Data Miner | Free I-36 Angel | -6/Data Miner | Free I-47 Archangel | -6/Data Miner | Free G-67 Veteran | -4/Factory | Hacked B-74 Champion | -1/Access | Hacked Fabricated ------------ Hacking Suite | x1 | -7/Factory Exp. Cesium-ion Thruster | x1 | -6/Factory Exp. Cesium-ion Thruster | x1 | -6/Factory Exp. Cesium-ion Thruster | x1 | -6/Factory Exp. Propulsion Shielding | x1 | -5/Factory Reaction Control System | x1 | -5/Factory Mni. Smartbomb Launcher | x1 | -5/Factory Mic. Fission Core | x2 | -4/Factory Mni. Smartbomb Launcher | x1 | -4/Factory Exp. Propulsion Shielding | x1 | -4/Factory Adv. Hacking Suite | x1 | -4/Factory Flamer | x1 | -4/Factory G-67 Veteran | x3 | -1/Access Alien Tech Used ----------------- Integrated Reactor Achievements -------------- Look Ma, No Swapping! Challenges ------------ Fragile Parts Game ------ Seed AssemblyGaussReplicator Manual? 0 Play Time 02:25:17 Cumulative 625.4 hours Start 2021.10.30 @ 16:23:38 End 2021.10.30 @ 18:48:07 Sessions 1 Manual Loads 0 Difficulty Rogue Special Mode None Game No. 636 Rogue 595 Adventurer 41 Explorer 0 Win Type 0 Total 29 Types 22/0/6/0/0/0/0/1/0 Lore% 90 Gallery% 93 Achievement% 78 Wizard Run 0 Options --------- ASCII 0 Keyboard 0 Movement Mouse Keybinds 0 Fullscreen 1 Font 18/Terminus Map View 76x50 Tactical HUD 1 Map Filters NONE Filters NONE Steam 1 RUN: 8200d7d3-5948-4701-b019-ad02ea46b161